[Event "Live Chess"]
[Site "Chess.com"]
[Date "2024.06.02"]
[Round "-"]
[White "ProfPoisson"]
[Black "matt1979"]
[Result "1-0"]
[WhiteElo "1330"]
[BlackElo "1428"]
[TimeControl "300"]
[EndTime "7:18:37 PDT"]
[Termination "ProfPoisson won by checkmate"]

1. e4 {[%clk 0:04:55.6]} 1... d6 {[%clk 0:04:59]} 2. Nc3 {[%clk 0:04:50.1]} 2...
Nf6 {[%clk 0:04:57.9]} 3. f4 {[%clk 0:04:48.5]} 3... e5 {[%clk 0:04:56.4]} 4. f5
{[%clk 0:04:38.4]} 4... Be7 {[%clk 0:04:53.7]} 5. Bc4 {[%clk 0:04:35.6]} 5... c6
{[%clk 0:04:50.6]} 6. Nf3 {[%clk 0:04:32.8]} 6... b5 {[%clk 0:04:47.4]} 7. Bb3
{[%clk 0:04:28.4]} 7... a5 {[%clk 0:04:45.2]} 8. a3 {[%clk 0:04:27.4]} 8... O-O
{[%clk 0:04:41.7]} 9. O-O {[%clk 0:04:25.1]} 9... Bb7 {[%clk 0:04:34.9]} 10. d3
{[%clk 0:04:21.8]} 10... Nbd7 {[%clk 0:04:25.6]} 11. Qe1 {[%clk 0:04:18.9]}
11... Nc5 {[%clk 0:04:23.8]} 12. Qg3 {[%clk 0:04:11.3]} 12... Nxb3 {[%clk
0:04:21.7]} 13. cxb3 {[%clk 0:04:06.5]} 13... Re8 {[%clk 0:04:10]} 14. Bh6
{[%clk 0:04:05]} 14... Bf8 {[%clk 0:04:07.7]} 15. Bg5 {[%clk 0:03:51.4]} 15...
Be7 {[%clk 0:03:58.9]} 16. Nh4 {[%clk 0:03:44.1]} 16... Nh5 {[%clk 0:03:46.9]}
17. Bxe7 {[%clk 0:03:36.6]} 17... Nxg3 {[%clk 0:03:40.9]} 18. Bxd8 {[%clk
0:03:34.8]} 18... Nxf1 {[%clk 0:03:39.9]} 19. Rxf1 {[%clk 0:03:33.4]} 19...
Raxd8 {[%clk 0:03:36.6]} 20. f6 {[%clk 0:03:29.6]} 20... g6 {[%clk 0:03:32]} 21.
Nf3 {[%clk 0:03:14.3]} 21... d5 {[%clk 0:03:28.1]} 22. Ng5 {[%clk 0:03:06.4]}
22... d4 {[%clk 0:03:18.7]} 23. Ne2 {[%clk 0:03:00.1]} 23... Rd6 {[%clk
0:03:13.2]} 24. h4 {[%clk 0:02:51]} 24... h6 {[%clk 0:03:10.4]} 25. Nh3 {[%clk
0:02:47.1]} 25... Ree6 {[%clk 0:03:07.3]} 26. h5 {[%clk 0:02:41.8]} 26... g5
{[%clk 0:03:00.9]} 27. Ng3 {[%clk 0:02:38]} 27... Rxf6 {[%clk 0:02:57.8]} 28.
Nf5 {[%clk 0:02:36.5]} 28... Rd8 {[%clk 0:02:50.6]} 29. Rc1 {[%clk 0:02:31.4]}
29... Bc8 {[%clk 0:02:43.7]} 30. Rc5 {[%clk 0:02:29.1]} 30... Bxf5 {[%clk
0:02:39.5]} 31. exf5 {[%clk 0:02:26]} 31... Rd5 {[%clk 0:02:33.9]} 32. Rc2
{[%clk 0:02:16.4]} 32... Rdd6 {[%clk 0:02:26.8]} 33. g4 {[%clk 0:02:16.3]} 33...
Rd8 {[%clk 0:02:17.6]} 34. Nf2 {[%clk 0:02:14.8]} 34... Rfd6 {[%clk 0:01:54.1]}
35. Ne4 {[%clk 0:02:14.2]} 35... R6d7 {[%clk 0:01:32.6]} 36. Kg2 {[%clk
0:02:13.6]} 36... Rc8 {[%clk 0:01:28.9]} 37. Nf6+ {[%clk 0:02:10.8]} 37... Kg7
{[%clk 0:01:25.2]} 38. Nxd7 {[%clk 0:02:09.2]} 38... Rd8 {[%clk 0:01:16.1]} 39.
Nxe5 {[%clk 0:02:07.3]} 39... Kf6 {[%clk 0:01:01.3]} 40. Rc5 {[%clk 0:02:04.7]}
40... Rd5 {[%clk 0:00:54.5]} 41. Rxd5 {[%clk 0:02:02.6]} 41... cxd5 {[%clk
0:00:53]} 42. Nc6 {[%clk 0:02:01.2]} 42... a4 {[%clk 0:00:49.1]} 43. Nxd4 {[%clk
0:01:57.3]} 43... Ke5 {[%clk 0:00:47.7]} 44. Nxb5 {[%clk 0:01:55.9]} 44... axb3
{[%clk 0:00:46.9]} 45. Kf2 {[%clk 0:01:52.2]} 45... d4 {[%clk 0:00:45.1]} 46. a4
{[%clk 0:01:49.7]} 46... Kd5 {[%clk 0:00:44.4]} 47. a5 {[%clk 0:01:49.2]} 47...
Kc5 {[%clk 0:00:43.3]} 48. Nc7 {[%clk 0:01:47.8]} 48... Kc6 {[%clk 0:00:39.5]}
49. Ne8 {[%clk 0:01:39]} 49... Kb5 {[%clk 0:00:37.4]} 50. Kf3 {[%clk 0:01:38.6]}
50... Kxa5 {[%clk 0:00:36.5]} 51. Ke4 {[%clk 0:01:38.1]} 51... Kb4 {[%clk
0:00:34]} 52. Kxd4 {[%clk 0:01:37.7]} 52... Kb5 {[%clk 0:00:31.7]} 53. Nd6+
{[%clk 0:01:35.8]} 53... Kc6 {[%clk 0:00:30.7]} 54. Nxf7 {[%clk 0:01:35.7]}
54... Kc7 {[%clk 0:00:28.4]} 55. Nxh6 {[%clk 0:01:35.6]} 55... Kb6 {[%clk
0:00:27.3]} 56. f6 {[%clk 0:01:34.3]} 56... Kc6 {[%clk 0:00:26.7]} 57. f7 {[%clk
0:01:33.9]} 57... Kd6 {[%clk 0:00:26.1]} 58. f8=Q+ {[%clk 0:01:33]} 58... Kd7
{[%clk 0:00:25.5]} 59. Kd5 {[%clk 0:01:30.6]} 59... Kc7 {[%clk 0:00:24.4]} 60.
Qd6+ {[%clk 0:01:27.7]} 60... Kb7 {[%clk 0:00:23.9]} 61. Kc5 {[%clk 0:01:26.3]}
61... Ka7 {[%clk 0:00:23.1]} 62. Kb5 {[%clk 0:01:20.7]} 62... Kb7 {[%clk
0:00:21.2]} 63. Qe7+ {[%clk 0:01:19.4]} 63... Ka8 {[%clk 0:00:20.4]} 64. Kb6
{[%clk 0:01:17.9]} 64... Kb8 {[%clk 0:00:19.6]} 65. Qf8# {[%clk 0:01:17.1]} 1-0

[Event "Live Chess"]
[Site "Chess.com"]
[Date "2024.06.02"]
[Round "-"]
[White "halfberg"]
[Black "RichardABates"]
[Result "1-0"]
[WhiteElo "1905"]
[BlackElo "2369"]
[TimeControl "300"]
[EndTime "7:18:45 PDT"]
[Termination "halfberg won by resignation"]

1. e4 {[%clk 0:04:51]} 1... c5 {[%clk 0:04:58.4]} 2. Nf3 {[%clk 0:04:47.6]} 2...
d6 {[%clk 0:04:56.8]} 3. c3 {[%clk 0:04:44.6]} 3... Nf6 {[%clk 0:04:55]} 4. Bd3
{[%clk 0:04:42.9]} 4... Nc6 {[%clk 0:04:52.2]} 5. O-O {[%clk 0:04:39.6]} 5... g5
{[%clk 0:04:50.1]} 6. h3 {[%clk 0:04:37.7]} 6... g4 {[%clk 0:04:47.1]} 7. hxg4
{[%clk 0:04:33]} 7... Bxg4 {[%clk 0:04:45.6]} 8. Bc2 {[%clk 0:04:28.2]} 8... Qd7
{[%clk 0:04:31.2]} 9. d4 {[%clk 0:04:25.2]} 9... cxd4 {[%clk 0:04:23]} 10. cxd4
{[%clk 0:04:23.2]} 10... Bxf3 {[%clk 0:04:21.7]} 11. Qxf3 {[%clk 0:04:13.7]}
11... Nxd4 {[%clk 0:04:20.2]} 12. Qd1 {[%clk 0:03:57]} 12... Nxc2 {[%clk
0:04:18.1]} 13. Qxc2 {[%clk 0:03:55.1]} 13... Rg8 {[%clk 0:04:16.8]} 14. Nc3
{[%clk 0:03:30.4]} 14... Rxg2+ {[%clk 0:04:03.7]} 15. Kxg2 {[%clk 0:03:25.7]}
15... Qg4+ {[%clk 0:04:01.5]} 16. Kh2 {[%clk 0:03:17.4]} 16... Rc8 {[%clk
0:03:30]} 17. f3 {[%clk 0:02:50.7]} 17... Qh4+ {[%clk 0:03:21.6]} 18. Kg1 {[%clk
0:02:45.6]} 18... Rc5 {[%clk 0:03:19.3]} 19. Qh2 {[%clk 0:02:28.7]} 1-0

[Event "Live Chess"]
[Site "Chess.com"]
[Date "2024.06.02"]
[Round "-"]
[White "WorcesterYork"]
[Black "resipsa6"]
[Result "1-0"]
[WhiteElo "2451"]
[BlackElo "2025"]
[TimeControl "300"]
[EndTime "7:19:03 PDT"]
[Termination "WorcesterYork won by resignation"]

1. e4 {[%clk 0:04:54]} 1... e5 {[%clk 0:04:56.9]} 2. Nf3 {[%clk 0:04:52.6]} 2...
Nf6 {[%clk 0:04:55.5]} 3. Nxe5 {[%clk 0:04:50.6]} 3... d6 {[%clk 0:04:54.3]} 4.
Nf3 {[%clk 0:04:49.7]} 4... Nxe4 {[%clk 0:04:53.6]} 5. Nc3 {[%clk 0:04:49]} 5...
Nxc3 {[%clk 0:04:52.8]} 6. dxc3 {[%clk 0:04:48.9]} 6... Be7 {[%clk 0:04:52.3]}
7. Bd3 {[%clk 0:04:46.9]} 7... Be6 {[%clk 0:04:50.7]} 8. Be3 {[%clk 0:04:45.3]}
8... Nc6 {[%clk 0:04:50.2]} 9. a4 {[%clk 0:04:44.2]} 9... Ne5 {[%clk 0:04:47.6]}
10. Nxe5 {[%clk 0:04:42.7]} 10... dxe5 {[%clk 0:04:47.5]} 11. a5 {[%clk
0:04:41.2]} 11... a6 {[%clk 0:04:46.1]} 12. Be4 {[%clk 0:04:40.2]} 12... Qxd1+
{[%clk 0:04:43.9]} 13. Rxd1 {[%clk 0:04:40.1]} 13... c6 {[%clk 0:04:38.4]} 14.
Bb6 {[%clk 0:04:39.2]} 14... O-O {[%clk 0:04:36.5]} 15. b3 {[%clk 0:04:37.3]}
15... Bd8 {[%clk 0:04:34.9]} 16. c4 {[%clk 0:04:35.8]} 16... Bxb6 {[%clk
0:04:33.9]} 17. axb6 {[%clk 0:04:34.7]} 17... Rfd8 {[%clk 0:04:33.5]} 18. Ke2
{[%clk 0:04:33.9]} 18... Kf8 {[%clk 0:04:25.2]} 19. g3 {[%clk 0:04:29.6]} 19...
h6 {[%clk 0:04:24]} 20. h3 {[%clk 0:04:22.5]} 20... Ke7 {[%clk 0:04:22.6]} 21.
g4 {[%clk 0:04:21.4]} 21... Rxd1 {[%clk 0:04:20.8]} 22. Rxd1 {[%clk 0:04:20.1]}
22... Rd8 {[%clk 0:04:20.3]} 23. Rxd8 {[%clk 0:04:18.4]} 23... Kxd8 {[%clk
0:04:20.2]} 24. c5 {[%clk 0:04:18]} 24... Ke7 {[%clk 0:04:17.1]} 25. Bxc6 {[%clk
0:04:14.4]} 25... Bc8 {[%clk 0:04:12.4]} 26. Be4 {[%clk 0:04:13.2]} 26... g6
{[%clk 0:04:11.2]} 27. c6 {[%clk 0:04:09.8]} 1-0

[Event "Live Chess"]
[Site "Chess.com"]
[Date "2024.06.02"]
[Round "-"]
[White "TigerTank70"]
[Black "Anareza_Firouzja"]
[Result "1-0"]
[WhiteElo "2189"]
[BlackElo "1886"]
[TimeControl "300"]
[EndTime "7:19:08 PDT"]
[Termination "TigerTank70 won by resignation"]

1. e4 {[%clk 0:04:57.7]} 1... c5 {[%clk 0:04:55.7]} 2. d4 {[%clk 0:04:56.2]}
2... cxd4 {[%clk 0:04:53.8]} 3. c3 {[%clk 0:04:55.7]} 3... dxc3 {[%clk
0:04:53.7]} 4. Nxc3 {[%clk 0:04:54.8]} 4... Nc6 {[%clk 0:04:53.3]} 5. Nf3 {[%clk
0:04:54.3]} 5... e6 {[%clk 0:04:51.9]} 6. Bc4 {[%clk 0:04:53.3]} 6... Bb4 {[%clk
0:04:51.2]} 7. O-O {[%clk 0:04:50.5]} 7... Nge7 {[%clk 0:04:49.7]} 8. Bg5 {[%clk
0:04:47.8]} 8... h6 {[%clk 0:04:48.3]} 9. Be3 {[%clk 0:04:46.1]} 9... Ng6 {[%clk
0:04:46.3]} 10. Ne2 {[%clk 0:04:43.7]} 10... O-O {[%clk 0:04:41.5]} 11. a3
{[%clk 0:04:42]} 11... Be7 {[%clk 0:04:39.1]} 12. Qd2 {[%clk 0:04:36.6]} 12...
b6 {[%clk 0:04:36.2]} 13. Rfd1 {[%clk 0:04:34.4]} 13... Nge5 {[%clk 0:04:29.7]}
14. Bb5 {[%clk 0:04:22.2]} 14... Nxf3+ {[%clk 0:04:24.1]} 15. gxf3 {[%clk
0:04:22.1]} 15... Qc7 {[%clk 0:04:14.2]} 16. Rac1 {[%clk 0:04:17.9]} 16... a6
{[%clk 0:04:10.8]} 17. Bxc6 {[%clk 0:03:55.8]} 17... dxc6 {[%clk 0:04:07.8]} 18.
Kh1 {[%clk 0:03:52.4]} 18... e5 {[%clk 0:03:57.9]} 19. Bxh6 {[%clk 0:03:46.9]}
1-0

[Event "Live Chess"]
[Site "Chess.com"]
[Date "2024.06.02"]
[Round "-"]
[White "Ferrarifan27"]
[Black "TheSmoulderingMaster"]
[Result "0-1"]
[WhiteElo "2137"]
[BlackElo "1781"]
[TimeControl "300"]
[EndTime "7:19:22 PDT"]
[Termination "TheSmoulderingMaster won by resignation"]

1. e4 {[%clk 0:04:58.9]} 1... c5 {[%clk 0:04:58.1]} 2. Nf3 {[%clk 0:04:57.2]}
2... d6 {[%clk 0:04:54.3]} 3. d4 {[%clk 0:04:56.1]} 3... cxd4 {[%clk 0:04:53.6]}
4. Nxd4 {[%clk 0:04:56]} 4... Nf6 {[%clk 0:04:52.5]} 5. Nc3 {[%clk 0:04:54.8]}
5... g6 {[%clk 0:04:51.9]} 6. Nd5 {[%clk 0:04:51.5]} 6... Bg7 {[%clk 0:04:49.9]}
7. Nxf6+ {[%clk 0:04:35.8]} 7... Bxf6 {[%clk 0:04:47.6]} 8. Bh6 {[%clk
0:04:35.4]} 8... Qb6 {[%clk 0:04:43.9]} 9. c3 {[%clk 0:04:33.5]} 9... Qxb2
{[%clk 0:04:41.9]} 10. Bb5+ {[%clk 0:04:26.7]} 10... Bd7 {[%clk 0:04:35.2]} 11.
O-O {[%clk 0:04:24.2]} 11... Bxb5 {[%clk 0:04:33.8]} 12. Rb1 {[%clk 0:04:22.7]}
12... Qxc3 {[%clk 0:04:27.8]} 13. Nxb5 {[%clk 0:04:20.7]} 13... Qa5 {[%clk
0:04:21.5]} 14. Qd2 {[%clk 0:03:27.3]} 14... Qxd2 {[%clk 0:04:12.6]} 15. Bxd2
{[%clk 0:03:26.3]} 15... Na6 {[%clk 0:04:11.8]} 16. Bh6 {[%clk 0:03:18.8]} 16...
Rc8 {[%clk 0:03:57.4]} 17. Nxa7 {[%clk 0:03:12]} 17... Rc2 {[%clk 0:03:55.6]}
18. Rxb7 {[%clk 0:03:07]} 18... Rxa2 {[%clk 0:03:50.7]} 19. Nc6 {[%clk
0:03:03.9]} 19... Nc5 {[%clk 0:03:41.6]} 20. Rb8+ {[%clk 0:03:02]} 20... Kd7
{[%clk 0:03:40.5]} 21. Rxh8 {[%clk 0:02:55.2]} 21... Bxh8 {[%clk 0:03:38.7]} 22.
Nb4 {[%clk 0:02:54.2]} 22... Rb2 {[%clk 0:03:34.6]} 23. Nd5 {[%clk 0:02:47.5]}
23... e6 {[%clk 0:03:29.9]} 24. Nf4 {[%clk 0:02:42]} 24... Nxe4 {[%clk
0:03:24.5]} 25. f3 {[%clk 0:02:35.1]} 25... Bd4+ {[%clk 0:03:20.6]} 26. Kh1
{[%clk 0:02:32.7]} 26... Nf2+ {[%clk 0:03:19.2]} 27. Kg1 {[%clk 0:02:31.7]}
27... Ng4+ {[%clk 0:03:14.6]} 28. Kh1 {[%clk 0:02:29]} 28... Nxh6 {[%clk
0:03:12.8]} 29. Rd1 {[%clk 0:02:27.3]} 29... Ra2 {[%clk 0:03:05.2]} 30. g3
{[%clk 0:02:17.5]} 30... Ra1 {[%clk 0:03:02.1]} 31. Rxa1 {[%clk 0:02:16.3]}
31... Bxa1 {[%clk 0:03:00.9]} 0-1

[Event "Live Chess"]
[Site "Chess.com"]
[Date "2024.06.02"]
[Round "-"]
[White "silunn"]
[Black "Frankie_Badacsonyi"]
[Result "0-1"]
[WhiteElo "2098"]
[BlackElo "2390"]
[TimeControl "300"]
[EndTime "7:19:32 PDT"]
[Termination "Frankie_Badacsonyi won by resignation"]

1. e4 {[%clk 0:04:59.3]} 1... e6 {[%clk 0:04:57.6]} 2. d4 {[%clk 0:04:58]} 2...
d5 {[%clk 0:04:57.1]} 3. e5 {[%clk 0:04:57.3]} 3... c5 {[%clk 0:04:55.2]} 4. c3
{[%clk 0:04:56.9]} 4... Nc6 {[%clk 0:04:54.9]} 5. Nf3 {[%clk 0:04:56.1]} 5...
Bd7 {[%clk 0:04:52.7]} 6. a3 {[%clk 0:04:55.1]} 6... Nge7 {[%clk 0:04:52.2]} 7.
Be2 {[%clk 0:04:52.7]} 7... cxd4 {[%clk 0:04:49.7]} 8. cxd4 {[%clk 0:04:51.8]}
8... Nf5 {[%clk 0:04:49.4]} 9. Be3 {[%clk 0:04:45.9]} 9... Be7 {[%clk
0:04:46.7]} 10. O-O {[%clk 0:04:44.8]} 10... O-O {[%clk 0:04:45.3]} 11. Nc3
{[%clk 0:04:41.4]} 11... Rc8 {[%clk 0:04:42.3]} 12. Rc1 {[%clk 0:04:32]} 12...
Nh4 {[%clk 0:04:38.4]} 13. Nxh4 {[%clk 0:04:27.3]} 13... Bxh4 {[%clk 0:04:38.3]}
14. f4 {[%clk 0:04:25]} 14... Be7 {[%clk 0:04:34.6]} 15. Kh1 {[%clk 0:04:16.4]}
15... f6 {[%clk 0:04:32.5]} 16. exf6 {[%clk 0:04:00.5]} 16... Bxf6 {[%clk
0:04:32.4]} 17. Bg4 {[%clk 0:03:49.1]} 17... Ne7 {[%clk 0:03:59.8]} 18. Qb3
{[%clk 0:03:30]} 18... b6 {[%clk 0:03:54.8]} 19. Nb5 {[%clk 0:03:12.2]} 19...
Rxc1 {[%clk 0:03:35]} 20. Rxc1 {[%clk 0:03:09.3]} 20... Bxb5 {[%clk 0:03:33.7]}
21. Bxe6+ {[%clk 0:03:07]} 21... Kh8 {[%clk 0:03:29.6]} 22. Qxb5 {[%clk
0:03:05.5]} 22... Qd6 {[%clk 0:03:10.7]} 23. f5 {[%clk 0:02:42.1]} 23... g6
{[%clk 0:03:09.6]} 24. Bh6 {[%clk 0:02:37]} 24... Bg7 {[%clk 0:03:08]} 25. Bxg7+
{[%clk 0:02:30.9]} 25... Kxg7 {[%clk 0:03:07.9]} 26. Qb4 {[%clk 0:02:01]} 26...
Qxb4 {[%clk 0:03:05.4]} 27. axb4 {[%clk 0:02:00.9]} 27... Nxf5 {[%clk
0:03:04.4]} 28. Bxd5 {[%clk 0:01:53.5]} 28... Nxd4 {[%clk 0:03:01.7]} 29. Rc7+
{[%clk 0:01:48.9]} 29... Kh6 {[%clk 0:02:59.6]} 30. Kg1 {[%clk 0:01:47.8]} 30...
Ne2+ {[%clk 0:02:57.8]} 0-1

[Event "Live Chess"]
[Site "Chess.com"]
[Date "2024.06.02"]
[Round "-"]
[White "DylanMeyer1"]
[Black "Mikhail_Golubev"]
[Result "0-1"]
[WhiteElo "1725"]
[BlackElo "2493"]
[TimeControl "300"]
[EndTime "7:19:32 PDT"]
[Termination "Mikhail_Golubev won by resignation"]

1. c4 {[%clk 0:04:58.3]} 1... g6 {[%clk 0:04:56.4]} 2. Nc3 {[%clk 0:04:57.8]}
2... Bg7 {[%clk 0:04:55.4]} 3. g3 {[%clk 0:04:57.2]} 3... e5 {[%clk 0:04:53.6]}
4. Bg2 {[%clk 0:04:56.3]} 4... Nc6 {[%clk 0:04:52.6]} 5. e3 {[%clk 0:04:55.7]}
5... d6 {[%clk 0:04:49.3]} 6. Nge2 {[%clk 0:04:54.5]} 6... Nf6 {[%clk
0:04:47.4]} 7. b3 {[%clk 0:04:53.6]} 7... O-O {[%clk 0:04:44.8]} 8. Bb2 {[%clk
0:04:52.2]} 8... Re8 {[%clk 0:04:38.8]} 9. O-O {[%clk 0:04:50.7]} 9... e4 {[%clk
0:04:34]} 10. d3 {[%clk 0:04:49.6]} 10... exd3 {[%clk 0:04:28.8]} 11. Qxd3
{[%clk 0:04:47.2]} 11... Bf5 {[%clk 0:04:15.5]} 12. Qd4 {[%clk 0:04:46.3]} 12...
Nxd4 {[%clk 0:04:13.4]} 13. Nxd4 {[%clk 0:04:35.2]} 13... Be4 {[%clk 0:04:07.6]}
14. Nxe4 {[%clk 0:04:33.5]} 14... Nxe4 {[%clk 0:04:06.1]} 15. Rad1 {[%clk
0:04:31.4]} 15... c5 {[%clk 0:04:03.5]} 16. Nb5 {[%clk 0:04:29.9]} 16... Bxb2
{[%clk 0:04:00.5]} 17. Bxe4 {[%clk 0:04:29.8]} 17... Rxe4 {[%clk 0:03:58.9]} 18.
Nxd6 {[%clk 0:04:29.7]} 18... Rd4 {[%clk 0:03:50.8]} 19. exd4 {[%clk 0:04:27.8]}
19... Qxd6 {[%clk 0:03:48.6]} 20. dxc5 {[%clk 0:04:25.9]} 20... Qxc5 {[%clk
0:03:47.3]} 21. Rd5 {[%clk 0:04:25.7]} 21... Qa3 {[%clk 0:03:41.7]} 22. Rfd1
{[%clk 0:04:25.6]} 22... Qxa2 {[%clk 0:03:38.4]} 23. R5d3 {[%clk 0:04:18.8]}
23... a5 {[%clk 0:03:34.7]} 24. R1d2 {[%clk 0:04:15.6]} 24... a4 {[%clk
0:03:32.4]} 25. Kg2 {[%clk 0:04:15.5]} 25... axb3 {[%clk 0:03:30.9]} 26. Rd8+
{[%clk 0:04:12.7]} 26... Rxd8 {[%clk 0:03:28.8]} 27. Rxd8+ {[%clk 0:04:12.6]}
27... Kg7 {[%clk 0:03:27.9]} 28. Rd7 {[%clk 0:04:12.4]} 28... Bf6 {[%clk
0:03:23.5]} 29. h4 {[%clk 0:04:07.2]} 29... b2 {[%clk 0:03:21.7]} 30. c5 {[%clk
0:04:05.4]} 30... b1=R {[%clk 0:03:15.9]} 31. c6 {[%clk 0:04:05.3]} 31... bxc6
{[%clk 0:03:13.8]} 32. Rd3 {[%clk 0:03:57.6]} 32... Rb2 {[%clk 0:03:10]} 33. Rf3
{[%clk 0:03:56.7]} 33... Bd4 {[%clk 0:03:07.7]} 0-1

[Event "Live Chess"]
[Site "Chess.com"]
[Date "2024.06.02"]
[Round "-"]
[White "seasidecastle27"]
[Black "dmitro74"]
[Result "1-0"]
[WhiteElo "1957"]
[BlackElo "1746"]
[TimeControl "300"]
[EndTime "7:19:48 PDT"]
[Termination "seasidecastle27 won by checkmate"]

1. d4 {[%clk 0:04:57.5]} 1... d5 {[%clk 0:04:58.9]} 2. Nf3 {[%clk 0:04:56.7]}
2... Nf6 {[%clk 0:04:57.7]} 3. Bf4 {[%clk 0:04:55.8]} 3... e6 {[%clk 0:04:55.4]}
4. e3 {[%clk 0:04:54.9]} 4... Bd6 {[%clk 0:04:54.2]} 5. Bg3 {[%clk 0:04:53.4]}
5... Ne4 {[%clk 0:04:50.9]} 6. Nbd2 {[%clk 0:04:51.3]} 6... Nxg3 {[%clk
0:04:49.2]} 7. hxg3 {[%clk 0:04:49.9]} 7... h6 {[%clk 0:04:43.5]} 8. Bd3 {[%clk
0:04:48.4]} 8... c5 {[%clk 0:04:41.4]} 9. c3 {[%clk 0:04:46.7]} 9... c4 {[%clk
0:04:39.8]} 10. Bc2 {[%clk 0:04:45.2]} 10... b5 {[%clk 0:04:38.6]} 11. a3 {[%clk
0:04:42.5]} 11... a5 {[%clk 0:04:36.5]} 12. Qe2 {[%clk 0:04:40.8]} 12... Bb7
{[%clk 0:04:34.1]} 13. e4 {[%clk 0:04:38.7]} 13... dxe4 {[%clk 0:04:28.9]} 14.
Nxe4 {[%clk 0:04:36.2]} 14... Be7 {[%clk 0:04:26.8]} 15. g4 {[%clk 0:04:27.3]}
15... Nd7 {[%clk 0:04:23.4]} 16. g5 {[%clk 0:04:25.5]} 16... h5 {[%clk
0:04:20.6]} 17. g6 {[%clk 0:04:21.5]} 17... f5 {[%clk 0:04:08.7]} 18. Nc5 {[%clk
0:04:06.7]} 18... Nxc5 {[%clk 0:04:04.1]} 19. dxc5 {[%clk 0:04:05.1]} 19... Qd7
{[%clk 0:03:54.5]} 20. Rd1 {[%clk 0:03:57.3]} 20... Qc6 {[%clk 0:03:49.5]} 21.
Rh2 {[%clk 0:03:26.3]} 21... Rd8 {[%clk 0:03:33.3]} 22. Nd4 {[%clk 0:03:18.9]}
22... Rxd4 {[%clk 0:02:48.6]} 23. cxd4 {[%clk 0:03:12.6]} 23... Qc7 {[%clk
0:02:35.5]} 24. Rxh5 {[%clk 0:02:57]} 24... Rxh5 {[%clk 0:02:26.6]} 25. Qxh5
{[%clk 0:02:55.4]} 25... Kd7 {[%clk 0:02:15.5]} 26. d5 {[%clk 0:02:37]} 26...
Bxd5 {[%clk 0:02:09.3]} 27. Rxd5+ {[%clk 0:02:27.1]} 27... exd5 {[%clk 0:02:01]}
28. Qxf5+ {[%clk 0:02:23.4]} 28... Kd8 {[%clk 0:01:52.2]} 29. Qxd5+ {[%clk
0:02:19.2]} 29... Qd7 {[%clk 0:01:34]} 30. Qa8+ {[%clk 0:02:11.1]} 30... Qc8
{[%clk 0:01:31.2]} 31. Qxa5+ {[%clk 0:02:05.2]} 31... Qc7 {[%clk 0:01:29.8]} 32.
Qa8+ {[%clk 0:01:57.5]} 32... Qc8 {[%clk 0:01:25.8]} 33. Qxc8+ {[%clk
0:01:51.6]} 33... Kxc8 {[%clk 0:01:24.4]} 34. f4 {[%clk 0:01:47.3]} 34... Bxc5
{[%clk 0:01:22.4]} 35. Ke2 {[%clk 0:01:45.6]} 35... Kd7 {[%clk 0:01:20.8]} 36.
Kf3 {[%clk 0:01:43.7]} 36... Ke6 {[%clk 0:01:18.1]} 37. g4 {[%clk 0:01:38.8]}
37... b4 {[%clk 0:01:15.2]} 38. axb4 {[%clk 0:01:36.7]} 38... Bxb4 {[%clk
0:01:13.8]} 39. Ke4 {[%clk 0:01:34.1]} 39... c3 {[%clk 0:01:06.8]} 40. bxc3
{[%clk 0:01:32.4]} 40... Bxc3 {[%clk 0:01:05.7]} 41. g5 {[%clk 0:01:26.7]} 41...
Bd2 {[%clk 0:01:01.9]} 42. Bb3+ {[%clk 0:01:24.5]} 42... Kd6 {[%clk 0:00:59.6]}
43. Kf5 {[%clk 0:01:22.8]} 43... Bc1 {[%clk 0:00:56.9]} 44. Kg4 {[%clk
0:01:21.2]} 44... Bd2 {[%clk 0:00:53]} 45. Kf5 {[%clk 0:01:18.5]} 45... Bc1
{[%clk 0:00:50.6]} 46. Ke4 {[%clk 0:01:17.3]} 46... Bd2 {[%clk 0:00:48.7]} 47.
Bg8 {[%clk 0:01:14.6]} 47... Bc1 {[%clk 0:00:46.7]} 48. Kf5 {[%clk 0:01:10.8]}
48... Bd2 {[%clk 0:00:45.2]} 49. Kg4 {[%clk 0:01:09.5]} 49... Bc1 {[%clk
0:00:44]} 50. f5 {[%clk 0:01:08.2]} 50... Ke5 {[%clk 0:00:41.5]} 51. Bb3 {[%clk
0:01:04.5]} 51... Bd2 {[%clk 0:00:39.3]} 52. f6 {[%clk 0:01:02.4]} 52... gxf6
{[%clk 0:00:37.4]} 53. g7 {[%clk 0:01:00.9]} 53... f5+ {[%clk 0:00:35.5]} 54.
Kf3 {[%clk 0:00:59]} 54... Bxg5 {[%clk 0:00:33.3]} 55. g8=Q {[%clk 0:00:57.2]}
55... Bf6 {[%clk 0:00:32]} 56. Qe6+ {[%clk 0:00:55.7]} 56... Kd4 {[%clk
0:00:31]} 57. Qxf6+ {[%clk 0:00:54.5]} 57... Kc5 {[%clk 0:00:29.4]} 58. Qxf5+
{[%clk 0:00:53.5]} 58... Kb4 {[%clk 0:00:28.5]} 59. Qd5 {[%clk 0:00:52.2]} 59...
Kc3 {[%clk 0:00:26.1]} 60. Ba4 {[%clk 0:00:50.8]} 60... Kb4 {[%clk 0:00:24.9]}
61. Bd7 {[%clk 0:00:48.7]} 61... Kc3 {[%clk 0:00:23.6]} 62. Ke3 {[%clk 0:00:47]}
62... Kc2 {[%clk 0:00:22.2]} 63. Ke2 {[%clk 0:00:46]} 63... Kc3 {[%clk
0:00:21.1]} 64. Qc5+ {[%clk 0:00:44.8]} 64... Kb3 {[%clk 0:00:19.5]} 65. Be6+
{[%clk 0:00:43.2]} 65... Ka4 {[%clk 0:00:17.8]} 66. Qb6 {[%clk 0:00:41.9]} 66...
Ka3 {[%clk 0:00:16.3]} 67. Kd3 {[%clk 0:00:40.9]} 67... Ka4 {[%clk 0:00:14.5]}
68. Qb3+ {[%clk 0:00:38.7]} 68... Ka5 {[%clk 0:00:13.1]} 69. Kc4 {[%clk
0:00:38]} 69... Ka6 {[%clk 0:00:11.7]} 70. Bd5 {[%clk 0:00:37.1]} 70... Ka7
{[%clk 0:00:10.4]} 71. Qb7# {[%clk 0:00:35.9]} 1-0